bitfinex-derivatives/quotes_BTCF0:USTF0_20240910
["timestamp","ask_amount","ask_price","bid_price","bid_amount"]
[1725988713024,0.12085392,57350.0,57349.0,0.0004]
[1725988713321,0.087181,57349.0,57347.0,0.0004]
[1725988713522,0.03407492,57348.0,57347.0,0.0004]
[1725988713837,0.03407492,57348.0,57347.0,0.0084]
[1725988713838,0.12225692,57348.0,57347.0,0.0084]
[1725988714229,0.31469079,57348.0,57347.0,0.0084]
[1725988714521,0.39205962,57348.0,57347.0,0.0084]
[1725988714916,0.30487762,57348.0,57347.0,0.0084]
[1725988715218,0.13128455,57348.0,57347.0,1.218704]
[1725988715423,0.19135236,57348.0,57347.0,1.218704]
[1725988715717,0.13128455,57348.0,57347.0,1.218704]
[1725988715918,0.13128455,57348.0,57347.0,1.210704]
[1725988716114,0.13228455,57348.0,57347.0,1.218704]
[1725988716518,0.30593326,57348.0,57347.0,0.095584]
[1725988716717,0.30593326,57348.0,57347.0,0.618704]
[1725988716916,0.0024,57348.0,57347.0,0.74311439]
[1725988717116,0.19106616,57349.0,57348.0,0.087182]
[1725988717318,0.19106616,57349.0,57348.0,0.21199239]
[1725988717713,0.19106616,57349.0,57348.0,0.73511239]
[1725988718124,0.19106616,57349.0,57348.0,0.21199239]
[1725988718512,0.19306616,57349.0,57348.0,0.50299239]
[1725988719625,0.08716,57363.0,57354.0,0.087172]
[1725988719818,0.08716,57363.0,57362.0,0.0004]
[1725988721219,0.001,57363.0,57362.0,1.490561]
[1725988721422,0.087131,57382.0,57362.0,1.490561]
[1725988721423,0.087147,57372.0,57370.0,0.087148]
[1725988721621,0.087147,57372.0,57371.0,0.087547]
[1725988721819,0.087138,57377.0,57373.0,0.087144]
[1725988722130,0.087139,57377.0,57376.0,0.0004]
[1725988722924,0.101139,57377.0,57376.0,0.0004]
[1725988723422,0.087139,57377.0,57376.0,0.0004]
[1725988723631,0.115139,57377.0,57376.0,0.0014]
[1725988723831,0.028,57377.0,57376.0,0.0014]
[1725988724132,0.12170944,57407.0,57376.0,0.0014]
[1725988724133,0.28,57393.0,57381.0,0.087131]
[1725988724320,0.23523795,57391.0,57390.0,0.0004]
[1725988724519,0.75795795,57391.0,57376.0,0.001]
[1725988724831,0.367128,57384.0,57377.0,0.087137]
[1725988725128,0.007,57377.0,57376.0,0.001]
[1725988725323,0.007,57377.0,57376.0,0.002]
[1725988725324,0.0214,57377.0,57376.0,0.002]
[1725988725524,0.16026257,57377.0,57376.0,0.002]
[1725988725726,0.19593677,57377.0,57376.0,0.002]
[1725988726133,0.18193677,57377.0,57376.0,0.001]
[1725988726323,0.0500742,57377.0,57376.0,0.001]
[1725988726517,0.0500742,57377.0,57376.0,0.088139]
[1725988726924,0.0550742,57377.0,57376.0,0.088139]
[1725988727430,0.0550742,57377.0,57376.0,0.001]
[1725988727626,0.10856295,57377.0,57372.0,0.087145]
[1725988727827,0.0004,57373.0,57366.0,0.087155]
[1725988728128,0.13878386,57367.0,57366.0,0.087155]
[1725988728434,0.0426742,57367.0,57366.0,0.087155]
[1725988728634,0.0426742,57367.0,57366.0,1.29727]
[1725988728844,0.13878386,57370.0,57369.0,0.08715]
[1725988729130,0.18145794,57370.0,57369.0,0.36755]
[1725988729330,0.18145794,57370.0,57369.0,1.49047]
[1725988730427,0.04267408,57370.0,57369.0,0.89247]
[1725988730727,0.0004,57373.0,57371.0,0.087147]
[1725988730728,0.15613184,57372.0,57371.0,0.087147]
[1725988730933,0.0004,57373.0,57372.0,0.087146]
[1725988731128,0.0004,57373.0,57372.0,0.610426]
[1725988731329,0.0004,57373.0,57372.0,0.087146]
[1725988731931,0.09656382,57373.0,57372.0,0.087146]
[1725988732126,0.0004,57373.0,57372.0,0.087146]
[1725988732632,0.0014,57373.0,57372.0,0.088146]
[1725988734433,0.088544,57373.0,57372.0,0.088146]
[1725988734635,0.0014,57373.0,57372.0,0.088146]
[1725988735029,0.088544,57373.0,57372.0,0.001]
[1725988736735,0.0014,57373.0,57372.0,0.001]
[1725988736935,0.0014,57373.0,57372.0,0.088146]
[1725988738729,0.0014,57373.0,57372.0,0.11734038]
[1725988739238,0.0014,57373.0,57372.0,0.088146]
[1725988740739,0.10542051,57373.0,57372.0,0.698172]
[1725988740933,0.0014,57373.0,57372.0,1.423372]
[1725988741745,0.0014,57373.0,57372.0,0.823372]
[1725988742042,0.0014,57373.0,57372.0,0.736226]
[1725988742233,0.0014,57373.0,57372.0,0.823372]
[1725988742435,0.0014,57373.0,57372.0,1.103372]
[1725988743234,0.0014,57373.0,57372.0,0.088146]
[1725988743437,0.088544,57373.0,57372.0,0.088146]
[1725988743744,0.20992399,57373.0,57372.0,0.088146]
[1725988744040,0.20996075,57373.0,57372.0,0.001]
[1725988744343,0.087154,57367.0,57357.0,0.087167]
[1725988744536,0.0004,57358.0,57357.0,0.087167]
[1725988745632,0.0004,57358.0,57357.0,0.101167]
[1725988745843,0.0014,57358.0,57357.0,0.115167]
[1725988746238,0.0014,57358.0,57357.0,0.028]
[1725988746534,0.0014,57358.0,57357.0,0.115168]
[1725988747239,1.40444,57358.0,57340.0,0.28]
[1725988747541,0.087172,57355.0,57345.0,0.28]
[1725988747843,0.2398,57357.0,57345.0,0.28]
[1725988748145,0.2398,57357.0,57356.0,0.0004]
[1725988748644,1.36284,57357.0,57340.0,0.014]
[1725988748846,0.0004,57341.0,57340.0,0.028]
[1725988749142,0.0004,57341.0,57340.0,0.014]
[1725988749335,0.1263,57341.0,57340.0,0.014]
[1725988749844,1.2495,57341.0,57340.0,0.028]
[1725988750044,1.2495,57341.0,57340.0,0.014]
[1725988750342,0.1263,57341.0,57340.0,0.014]
[1725988751139,0.1273,57341.0,57340.0,0.014]
[1725988751546,0.1283,57341.0,57339.0,0.087196]
[1725988751748,0.1283,57341.0,57326.0,0.28]
[1725988751941,0.0004,57327.0,57325.0,0.087216]
[1725988752147,0.28,57336.0,57329.0,0.087211]
[1725988752347,0.28,57336.0,57335.0,0.0004]
[1725988752648,0.3672,57336.0,57335.0,0.0004]
[1725988753037,1.40324,57336.0,57324.0,0.15525993]
[1725988753241,0.0004,57325.0,57324.0,0.06804093]
[1725988753443,0.1267,57325.0,57324.0,0.06804093]
[1725988754243,0.1267,57325.0,57314.0,0.10230294]
[1725988754244,0.52336,57324.0,57314.0,0.10230294]
[1725988754445,0.0004,57315.0,57305.0,0.11892878]
[1725988754645,0.0004,57315.0,57306.0,0.28]
[1725988755042,0.0004,57315.0,57313.0,0.087235]
[1725988755437,0.0004,57315.0,57314.0,0.009]
[1725988755842,1.12384,57315.0,57314.0,0.009]
[1725988756043,1.212072,57315.0,57314.0,0.009]
[1725988756751,1.2416513,57315.0,57314.0,0.009]
[1725988757046,0.0014,57315.0,57313.0,0.087235]
[1725988757249,0.0014,57315.0,57313.0,0.095235]
[1725988757250,0.0004,57314.0,57313.0,0.095235]
[1725988757644,0.1263,57325.0,57316.0,0.08723]
[1725988757844,0.15498794,57325.0,57324.0,0.0004]
[1725988758241,1.27830794,57325.0,57324.0,0.0004]
[1725988758842,0.76552594,57325.0,57324.0,0.0004]
[1725988759152,1.36552594,57325.0,57316.0,0.005]
[1725988759348,0.2804,57317.0,57316.0,0.005]
[1725988760144,0.2804,57317.0,57310.0,0.087239]
[1725988760348,0.0004,57311.0,57310.0,0.087239]
[1725988760949,0.0004,57311.0,57295.0,0.28]
[1725988761150,0.0004,57297.0,57295.0,0.28]
[1725988761352,0.28,57308.0,57303.0,0.08725]
[1725988761547,0.28,57308.0,57292.0,0.212466]
[1725988761848,0.28,57308.0,57306.0,0.087246]
[1725988762053,0.23834697,57313.0,57310.0,0.09324]
[1725988762355,0.087238,57311.0,57310.0,0.006]
[1725988762551,0.367229,57317.0,57299.0,0.28]
[1725988762751,0.001,57308.0,57307.0,0.087245]
[1725988763654,0.002,57308.0,57307.0,0.087245]
[1725988764247,0.001,57308.0,57307.0,0.087245]
[1725988764451,0.368117,57312.0,57310.0,0.087239]
[1725988764662,0.28,57312.0,57311.0,0.087238]
[1725988764957,0.001,57313.0,57312.0,0.087237]
[1725988765455,0.001,57313.0,57312.0,0.087637]
[1725988765759,0.087231,57316.0,57312.0,0.087237]
[1725988766154,0.367224,57321.0,57311.0,0.0004]
[1725988766374,0.367223,57321.0,57320.0,0.0004]
[1725988767345,0.368223,57321.0,57320.0,0.0004]
[1725988767950,0.455446,57321.0,57320.0,0.0004]
[1725988768150,0.368223,57321.0,57320.0,0.0004]
[1725988768343,0.370223,57321.0,57320.0,0.0004]
[1725988769549,0.370223,57321.0,57311.0,0.0004]
[1725988769550,0.087231,57316.0,57311.0,0.0004]
[1725988769748,0.087231,57316.0,57294.0,0.203063]
[1725988769749,0.087637,57312.0,57300.0,0.087255]
[1725988769945,0.28,57297.0,57279.0,0.00108]
[1725988770151,0.0004,57280.0,57279.0,0.201787]
[1725988770455,0.0004,57280.0,57279.0,0.31860318]
[1725988770660,0.28,57295.0,57280.0,0.087285]
[1725988770861,0.087257,57299.0,57294.0,0.087263]
[1725988771056,0.28,57296.0,57290.0,0.08727]
[1725988771252,0.28,57296.0,57292.0,0.087266]
[1725988771454,0.28,57296.0,57293.0,0.087265]
[1725988771659,0.28,57296.0,57295.0,0.087263]
[1725988771850,0.28,57296.0,57279.0,0.14902918]
[1725988772051,0.28,57296.0,57294.0,0.087263]
[1725988772247,0.281,57296.0,57294.0,0.087263]
[1725988773659,0.282,57296.0,57294.0,0.096263]
[1725988774252,0.282,57296.0,57295.0,0.12634422]
[1725988774447,0.281,57296.0,57295.0,0.21360722]
[1725988774651,0.1245,57304.0,57298.0,0.087257]
[1725988774652,0.087249,57304.0,57298.0,0.087257]
[1725988774852,0.30938224,57305.0,57296.0,0.087261]
[1725988774853,0.28,57301.0,57296.0,0.087261]
[1725988775151,0.087257,57300.0,57297.0,0.1262251]
[1725988775353,0.087257,57300.0,57298.0,0.1262251]
[1725988775553,0.087257,57300.0,57297.0,0.087259]
[1725988775854,0.087257,57299.0,57298.0,0.12623016]
[1725988776054,0.001,57296.0,57294.0,0.099264]
[1725988776260,0.00088,57299.0,57295.0,0.12621734]
[1725988776458,0.28,57300.0,57299.0,0.087257]
[1725988776957,0.367255,57300.0,57299.0,0.0004]
[1725988777169,0.368255,57300.0,57298.0,0.0004]
[1725988777459,0.0004,57299.0,57298.0,0.087658]
[1725988777649,0.4024,57314.0,57299.0,0.087256]
[1725988777855,0.4024,57314.0,57298.0,0.27830916]
[1725988777856,0.28,57321.0,57313.0,0.0004]
[1725988778162,0.28,57335.0,57320.0,0.0004]
[1725988778355,0.28,57330.0,57325.0,0.087216]
[1725988779465,0.28,57326.0,57320.0,0.18942535]
[1725988779654,0.28,57326.0,57321.0,0.12351189]
[1725988779952,0.28,57326.0,57313.0,0.0004]
[1725988779953,0.367216,57326.0,57313.0,0.0004]
[1725988780152,0.0004,57314.0,57313.0,0.0004]
[1725988780349,0.0004,57314.0,57313.0,0.087635]
[1725988780752,0.0004,57314.0,57313.0,0.0004]
[1725988782164,0.0014,57314.0,57313.0,0.0154]
[1725988782761,0.0014,57314.0,57313.0,0.0114]
[1725988782959,0.0014,57314.0,57313.0,0.0004]
[1725988783161,0.0014,57314.0,57313.0,0.0014]
[1725988783354,0.088634,57314.0,57313.0,0.0014]
[1725988783757,0.0014,57314.0,57313.0,0.0014]
[1725988784365,0.0014,57314.0,57313.0,0.08668881]
[1725988784555,0.088634,57314.0,57313.0,0.08669518]
[1725988785163,0.775868,57314.0,57313.0,0.0014]
[1725988785458,0.087246,57306.0,57300.0,0.08529518]
[1725988785656,0.28,57307.0,57301.0,0.087253]
[1725988785859,0.367238,57312.0,57306.0,0.0004]
[1725988786059,0.367238,57312.0,57311.0,0.0004]
[1725988786268,0.28,57312.0,57306.0,0.0004]
[1725988786472,0.0004,57307.0,57306.0,0.0004]
[1725988786960,0.0004,57307.0,57301.0,0.08529518]
[1725988787166,0.0004,57302.0,57300.0,0.18454918]
[1725988787355,0.0004,57302.0,57300.0,0.099254]
[1725988787551,0.00012935,57302.0,57301.0,0.087254]
[1725988788162,0.00012935,57302.0,57300.0,0.012]
[1725988788163,0.087254,57301.0,57300.0,0.012]
[1725988788362,0.087654,57301.0,57300.0,0.012]
[1725988788562,0.087654,57301.0,57300.0,0.019]
[1725988788761,0.087254,57301.0,57300.0,0.007]
[1725988788965,0.28,57302.0,57294.0,0.08529518]
[1725988789163,0.088252,57302.0,57301.0,0.0074]
[1725988789351,0.455504,57302.0,57301.0,0.0074]
[1725988789556,0.28,57291.0,57290.0,0.08529518]
[1725988789764,0.2804,57291.0,57290.0,0.08529518]
[1725988790357,0.2804,57291.0,57289.0,0.08529518]
[1725988790558,0.0004,57290.0,57289.0,0.08529518]
[1725988790758,0.0004,57290.0,57289.0,0.17256718]
[1725988791460,0.0004,57290.0,57289.0,0.17356718]
[1725988792257,0.08591999,57290.0,57289.0,0.001]
[1725988792462,0.08691999,57290.0,57289.0,0.011]
[1725988792663,0.08691999,57290.0,57289.0,0.11348246]
[1725988793068,0.08691999,57290.0,57289.0,0.011]
[1725988793565,0.08691999,57290.0,57289.0,0.09639809]
[1725988794272,0.08691999,57290.0,57289.0,0.011]
[1725988794567,0.002,57290.0,57289.0,0.098272]
[1725988794964,0.002,57290.0,57289.0,0.18367009]
[1725988795170,0.001,57290.0,57289.0,0.29716915]
[1725988795472,0.002,57290.0,57289.0,0.099272]
[1725988795666,0.08927,57290.0,57289.0,0.012]
[1725988795869,0.002,57290.0,57289.0,0.012]
[1725988797572,0.22960233,57291.0,57289.0,0.012]
[1725988797775,0.087275,57287.0,57280.0,0.10248246]
[1725988798069,0.0004,57281.0,57278.0,0.087288]
[1725988798371,0.0004,57279.0,57275.0,0.087292]
[1725988798576,0.0004,57281.0,57268.0,0.10248246]
[1725988798577,0.0004,57276.0,57272.0,0.08546043]
[1725988798772,0.0004,57281.0,57274.0,0.08546043]
[1725988799076,0.0004,57281.0,57280.0,0.0024]
[1725988799077,0.087684,57281.0,57280.0,0.0024]
[1725988799271,0.367684,57281.0,57280.0,0.0024]
[1725988800468,0.367684,57281.0,57280.0,0.0004]
[1725988801165,0.2814,57281.0,57280.0,0.0024]
[1725988801661,0.0014,57281.0,57280.0,0.0014]
[1725988801863,0.0064,57281.0,57280.0,0.088686]
[1725988802364,0.0054,57281.0,57280.0,0.087686]
[1725988802561,0.0064,57281.0,57280.0,0.088686]
[1725988802872,0.0064,57281.0,57280.0,0.0014]
[1725988803372,0.0014,57281.0,57280.0,0.0014]
[1725988803571,0.0014,57281.0,57280.0,0.0024]
[1725988803976,0.0014,57281.0,57280.0,0.0014]
[1725988804572,0.0014,57281.0,57280.0,0.0004]
[1725988805076,0.001,57281.0,57280.0,0.0004]
[1725988805378,0.001,57281.0,57280.0,0.087686]
[1725988805573,0.002,57281.0,57280.0,0.087686]
[1725988805871,0.087269,57292.0,57280.0,1.40412]
[1725988806079,0.08727,57291.0,57289.0,0.087271]
[1725988806275,0.28,57299.0,57286.0,0.087276]
[1725988806468,0.0004,57287.0,57281.0,0.1173]
[1725988806775,0.087676,57287.0,57281.0,0.1173]
[1725988806975,0.087676,57287.0,57280.0,0.02922727]
[1725988806976,0.0004,57287.0,57280.0,0.05217804]
[1725988807170,0.0004,57281.0,57280.0,0.001]
[1725988807370,0.087281,57283.0,57280.0,0.001]
[1725988807568,0.087281,57283.0,57282.0,0.0004]
[1725988807967,0.28,57285.0,57282.0,0.0004]
[1725988808175,0.001,57287.0,57284.0,0.0004]
[1725988808376,0.001,57287.0,57286.0,0.087676]
[1725988808578,0.28,57295.0,57288.0,0.087273]
[1725988808875,0.28,57295.0,57285.0,0.17177804]
[1725988808876,0.087269,57291.0,57289.0,0.087272]
[1725988809266,0.28,57295.0,57290.0,0.08727]
[1725988809472,0.28,57295.0,57290.0,0.13844804]
[1725988810079,0.28,57295.0,57290.0,0.08727]
[1725988810575,0.087269,57291.0,57290.0,0.05117804]
[1725988810780,0.08727,57290.0,57289.0,0.05117804]
[1725988811080,0.08727,57290.0,57286.0,0.087276]
[1725988811081,0.087272,57289.0,57288.0,0.05117804]
[1725988811392,0.0004,57290.0,57284.0,0.05157804]
[1725988811576,0.0004,57285.0,57284.0,0.0004]
[1725988811782,0.087678,57285.0,57284.0,0.0004]
[1725988812083,0.287678,57285.0,57284.0,0.0004]
[1725988813080,0.288678,57285.0,57284.0,0.0014]
[1725988813277,0.08728,57284.0,57274.0,0.05117804]
[1725988813479,0.0004,57275.0,57271.0,0.13847704]
[1725988813678,0.2,57272.0,57271.0,0.05117804]
[1725988813978,0.2,57272.0,57268.0,0.05134761]
[1725988813979,0.087302,57269.0,57268.0,0.05134761]
[1725988814181,0.087302,57269.0,57261.0,0.087314]
[1725988814182,0.35688636,57269.0,57261.0,0.087314]
[1725988814380,0.35688636,57269.0,57249.0,0.3279]
[1725988814381,0.0004,57262.0,57254.0,0.087324]
[1725988814583,0.1394963,57255.0,57254.0,0.087324]
[1725988814879,0.07648636,57255.0,57254.0,0.087324]
[1725988815080,0.15648334,57258.0,57256.0,0.087322]
[1725988815281,0.36731,57264.0,57256.0,0.087322]
[1725988815282,0.13009271,57257.0,57256.0,0.087322]
[1725988815475,0.0873314,57258.0,57256.0,0.087322]
[1725988815679,0.13009271,57257.0,57252.0,0.087328]
[1725988815878,0.13009271,57257.0,57248.0,0.1196]
[1725988815879,0.0004,57253.0,57248.0,0.1196]
[1725988816076,0.215955,57253.0,57249.0,0.087332]
[1725988816280,0.215555,57252.0,57249.0,0.087332]
[1725988816477,0.07649171,57251.0,57249.0,0.087332]
[1725988816671,0.0337304,57250.0,57244.0,0.08734]
[1725988816878,0.12163545,57247.0,57244.0,0.08734]
[1725988817187,0.0004,57245.0,57244.0,0.08734]
[1725988817386,0.12203545,57245.0,57240.0,0.087346]
[1725988817581,0.0004,57241.0,57240.0,0.087346]
[1725988817782,0.07690049,57241.0,57240.0,0.087346]
[1725988817977,0.0004,57241.0,57240.0,0.087346]
[1725988818179,0.07690049,57241.0,57235.0,0.087354]
[1725988818377,0.07690049,57241.0,57231.0,0.352]
[1725988818378,0.13899734,57240.0,57239.0,0.087348]
[1725988818577,0.21549783,57240.0,57239.0,0.087348]
[1725988819182,0.21549783,57240.0,57231.0,0.38092389]
[1725988819183,0.21549783,57240.0,57231.0,0.25822389]
[1725988819383,0.0004,57232.0,57231.0,0.31666]
[1725988819684,0.10446667,57232.0,57231.0,0.31666]
[1725988820485,0.0014,57232.0,57231.0,0.31866]
[1725988821484,0.0024,57232.0,57231.0,0.31866]
[1725988821685,0.0024,57232.0,57231.0,0.59866]
[1725988822392,0.087345,57241.0,57237.0,0.087351]
[1725988822582,0.087345,57241.0,57240.0,0.0004]
[1725988823287,0.28,57241.0,57240.0,0.0004]
[1725988823675,0.368345,57241.0,57240.0,0.0004]
[1725988823877,0.369345,57241.0,57240.0,0.0004]
[1725988824085,0.368345,57241.0,57240.0,0.0004]
[1725988824391,0.369345,57241.0,57240.0,0.0024]
[1725988824588,0.002,57241.0,57240.0,0.0034]
[1725988824779,0.001,57241.0,57240.0,0.090747]
[1725988825290,0.07904869,57242.0,57241.0,0.69877]
[1725988825496,6.9e-07,57242.0,57241.0,0.83772269]
[1725988825787,6.9e-07,57242.0,57241.0,0.81167]
[1725988826379,6.9e-07,57242.0,57241.0,0.200245]
[1725988826582,6.9e-07,57242.0,57241.0,1.46284763]
[1725988826895,6.9e-07,57242.0,57241.0,1.46285024]
[1725988827086,6.9e-07,57242.0,57241.0,1.46585024]
[1725988827281,6.9e-07,57242.0,57241.0,1.502015]
[1725988827794,6.9e-07,57242.0,57241.0,1.504015]
[1725988828185,6.9e-07,57242.0,57241.0,1.71365756]
[1725988828393,6.9e-07,57242.0,57241.0,1.58947543]
[1725988828594,6.9e-07,57242.0,57241.0,1.504015]
[1725988831687,0.16731269,57264.0,57247.0,0.28]
[1725988831887,0.16731269,57264.0,57251.0,0.08733]
[1725988831888,0.087313,57263.0,57251.0,0.08733]
[1725988832092,0.28,57270.0,57265.0,0.087309]
[1725988832291,0.28,57270.0,57265.0,0.087709]
[1725988832292,0.327307,57266.0,57265.0,0.087709]
[1725988832494,0.35642221,57266.0,57265.0,0.087709]
[1725988833092,0.26911521,57266.0,57265.0,0.087709]
[1725988833397,0.1191,57266.0,57265.0,0.087709]
[1725988833697,1.010287,57266.0,57265.0,0.0004]
[1725988833993,1.53698,57266.0,57248.0,0.207034]
[1725988834198,0.28,57253.0,57252.0,0.087327]
[1725988835496,0.281,57253.0,57252.0,0.090327]
[1725988835696,0.087331,57250.0,57234.0,0.415135]
[1725988835900,0.087331,57250.0,57231.0,0.28]
[1725988835901,0.0004,57235.0,57231.0,0.08736]
[1725988836085,0.0004,57235.0,57234.0,0.087356]
[1725988836287,0.0004,57235.0,57234.0,0.174712]
[1725988837297,0.0004,57235.0,57234.0,0.178712]
[1725988837298,5.836e-05,57235.0,57234.0,0.178712]
[1725988837501,5.836e-05,57235.0,57234.0,0.26417243]
[1725988837794,0.002,57235.0,57234.0,0.099356]
[1725988838000,0.2321,57249.0,57235.0,0.087354]
[1725988838196,0.28,57253.0,57252.0,0.087328]
[1725988838394,0.28,57253.0,57240.0,0.43573621]
[1725988838395,0.2363,57261.0,57250.0,0.28]
[1725988838603,0.2363,57261.0,57248.0,0.05169191]
[1725988838604,0.2363,57261.0,57252.0,0.0004]
[1725988838798,0.087321,57257.0,57256.0,0.087321]
[1725988839594,0.087326,57254.0,57252.0,0.088728]
[1725988839796,0.36732,57258.0,57254.0,0.087325]
[1725988839988,0.011,57257.0,57256.0,0.088322]
[1725988840187,0.098321,57257.0,57256.0,0.001]
[1725988840600,1.222281,57257.0,57256.0,0.001]
[1725988841303,0.087327,57253.0,57252.0,0.0004]
[1725988841496,0.367727,57253.0,57252.0,0.0004]
[1725988841698,0.891727,57253.0,57252.0,0.0004]
[1725988842102,0.811727,57253.0,57252.0,0.0004]
[1725988842601,0.7304,57253.0,57252.0,0.088728]
[1725988842798,0.817727,57253.0,57252.0,0.0014]
[1725988842996,1.417727,57253.0,57252.0,0.0014]
[1725988843300,0.817727,57253.0,57252.0,0.0014]
[1725988843496,1.417727,57253.0,57252.0,0.05269191]
[1725988843997,0.0104,57253.0,57252.0,0.088728]
[1725988844394,0.2,57268.0,57252.0,0.32590062]
[1725988844591,0.2,57268.0,57267.0,0.087305]
[1725988845004,0.2299,57270.0,57266.0,0.05151975]
[1725988845192,0.2299,57270.0,57269.0,0.087302]
[1725988845598,0.1166,57270.0,57269.0,0.087702]
[1725988845909,0.1166,57270.0,57267.0,0.06909301]
[1725988846203,0.287304,57268.0,57267.0,0.05189258]
[1725988846407,0.287704,57268.0,57267.0,0.0004]
[1725988846589,0.815544,57268.0,57267.0,0.0004]
[1725988846995,0.829544,57268.0,57267.0,0.0004]
[1725988847399,0.839544,57268.0,57267.0,0.0014]
[1725988848090,0.87172311,57268.0,57267.0,0.0014]
[1725988848496,0.87172311,57268.0,57257.0,0.05149258]
[1725988848497,0.78441911,57268.0,57257.0,0.05149258]
[1725988848695,0.78441911,57268.0,57255.0,0.05149258]
[1725988848696,0.2,57258.0,57255.0,0.05149258]
[1725988848900,0.0004,57256.0,57255.0,0.13881658]
[1725988849094,0.123,57257.0,57256.0,0.087322]
[1725988849395,0.123,57257.0,57256.0,0.15599554]
[1725988849790,0.0004,57258.0,57257.0,0.087321]
[1725988849993,0.0004,57258.0,57257.0,0.087721]
[1725988850303,0.0004,57258.0,57257.0,0.088721]
[1725988850600,0.01,57268.0,57267.0,0.087305]
[1725988850902,0.123,57278.0,57277.0,0.08729]
[1725988851091,0.123,57278.0,57277.0,0.08769]
[1725988851502,0.123,57278.0,57277.0,0.0004]
[1725988851803,0.734049,57278.0,57277.0,0.0004]
[1725988851997,0.734049,57278.0,57267.0,0.0014]
[1725988851998,0.0873,57271.0,57268.0,0.05147153]
[1725988852198,0.2,57269.0,57267.0,0.0014]
[1725988852503,0.03412844,57268.0,57267.0,0.0014]
[1725988852701,0.03372844,57268.0,57267.0,0.0014]
[1725988853195,0.03372844,57268.0,57257.0,0.001]
[1725988853404,0.0004,57258.0,57257.0,0.08732]
[1725988853595,0.0004,57258.0,57249.0,0.119]
[1725988853792,0.0004,57258.0,57249.0,0.087333]
[1725988853793,0.0004,57250.0,57249.0,0.087333]
[1725988854506,0.2004,57250.0,57249.0,0.087333]
[1725988855007,0.2014,57250.0,57249.0,0.087333]
[1725988855206,0.2014,57250.0,57238.0,0.03169136]
[1725988855506,0.0004,57239.0,57238.0,0.08735]
[1725988855706,0.10551474,57250.0,57238.0,1.12412]
[1725988855898,0.001,57250.0,57249.0,0.087733]
[1725988856301,0.002,57250.0,57249.0,0.087733]
[1725988856906,0.001,57250.0,57249.0,0.087733]
[1725988857103,0.002,57250.0,57249.0,0.087733]
[1725988857307,0.003,57250.0,57249.0,0.087733]
[1725988857704,0.002,57250.0,57249.0,0.087733]
[1725988857901,0.003,57250.0,57249.0,0.087733]
[1725988858697,0.10751474,57250.0,57249.0,0.087733]
[1725988859009,0.19484574,57250.0,57249.0,0.0004]
[1725988859207,0.090331,57250.0,57249.0,0.0004]
[1725988859599,0.211531,57250.0,57249.0,0.0004]
[1725988860005,0.1242,57250.0,57249.0,0.0004]
[1725988860205,0.1242,57250.0,57249.0,0.087733]
[1725988860511,0.003,57250.0,57249.0,0.087733]
[1725988861100,0.003,57250.0,57249.0,0.13923726]
[1725988861605,0.003,57250.0,57249.0,0.0004]
[1725988861798,0.090331,57250.0,57249.0,0.0004]
[1725988862015,0.614371,57250.0,57249.0,0.0004]
[1725988862214,0.614371,57250.0,57242.0,0.05150426]
[1725988862509,0.2004,57243.0,57240.0,0.05150426]
[1725988862699,0.287745,57241.0,57239.0,0.05150426]
[1725988862899,0.0004,57240.0,57239.0,0.05150426]
[1725988863103,0.087348,57239.0,57236.0,0.05150426]
[1725988863307,0.287751,57237.0,57234.0,0.05150426]
[1725988863510,0.2004,57235.0,57233.0,0.06862871]
[1725988863728,0.0004,57237.0,57236.0,0.087353]
[1725988863933,0.002,57250.0,57242.0,0.087344]
[1725988864215,0.2,57248.0,57242.0,0.15636655]
[1725988864415,0.2,57244.0,57241.0,0.06862255]
[1725988864601,0.2,57244.0,57242.0,0.13880723]
[1725988865005,0.2,57244.0,57242.0,0.087344]
[1725988865312,0.287342,57244.0,57243.0,0.0004]
[1725988865511,0.374684,57244.0,57243.0,0.0004]
[1725988865703,0.898764,57244.0,57243.0,0.0004]
[1725988867112,0.898764,57244.0,57243.0,0.0044]
[1725988867412,0.087342,57243.0,57242.0,0.006]
[1725988867619,0.849222,57243.0,57242.0,0.006]
[1725988867814,0.849222,57243.0,57236.0,0.0004]
[1725988867815,0.76188,57243.0,57236.0,0.0004]
[1725988868113,0.287751,57237.0,57236.0,0.0004]
[1725988868306,0.287751,57237.0,57227.0,0.05146323]
[1725988868507,0.287751,57237.0,57223.0,0.05146323]
[1725988868508,0.0004,57228.0,57223.0,0.05146323]
[1725988868714,0.0004,57224.0,57220.0,0.13884023]
[1725988869013,0.2,57221.0,57218.0,0.05146323]
[1725988869217,0.0004,57219.0,57218.0,0.13884323]
[1725988869523,0.0004,57219.0,57218.0,0.08738]
[1725988870415,0.0014,57219.0,57218.0,0.09338]
[1725988871208,0.0014,57219.0,57218.0,0.10238]
[1725988871209,0.0024,57219.0,57218.0,0.10238]
[1725988873909,0.0004,57228.0,57218.0,0.015]
[1725988874112,0.28,57225.0,57218.0,0.015]
[1725988874314,0.087376,57221.0,57220.0,0.087376]
[1725988874520,0.28,57221.0,57218.0,0.015]
[1725988874712,0.0004,57219.0,57218.0,0.015]
[1725988874918,0.0004,57219.0,57218.0,0.006]
[1725988875113,0.367376,57221.0,57218.0,0.015]
[1725988875317,0.088366,57228.0,57227.0,0.087366]
[1725988875511,0.002,57228.0,57227.0,0.087766]
[1725988875717,0.002,57228.0,57227.0,0.087366]
[1725988876124,0.001,57228.0,57227.0,0.087366]